bitfinex/quotes_ETHUSD_20241129
["timestamp","ask_amount","ask_price","bid_price","bid_amount"]
[1732921822538,0.03068773,3597.3,3596.8,2.7802]
[1732921822778,0.29019387,3597.3,3596.9,0.35692]
[1732921823258,3.07006387,3597.3,3596.9,0.35692]
[1732921823444,0.25950614,3597.2,3596.9,3.13709]
[1732921823646,0.03068773,3597.3,3596.9,3.13709]
[1732921823845,0.03059443,3597.1,3596.9,3.13709]
[1732921824138,0.0305723,3597.0,3596.9,0.35692]
[1732921824341,0.25950614,3597.3,3596.9,0.35692]
[1732921824641,0.29013087,3597.2,3596.9,0.35692]
[1732921824888,0.03062473,3597.2,3596.9,0.35692]
[1732921825042,0.29013087,3597.2,3596.9,0.35692]
[1732921825242,0.25950614,3597.3,3596.9,0.35692]
[1732921825485,0.03058625,3597.1,3596.9,0.35692]
[1732921825688,0.25950614,3597.2,3596.9,0.35692]
[1732921825884,0.03056412,3597.0,3596.9,0.35692]
[1732921826391,0.25950614,3597.3,3596.9,0.35692]
[1732921826546,0.03057625,3597.0,3596.9,0.35692]
[1732921826743,0.25950614,3597.3,3596.9,3.13709]
[1732921826943,0.29015842,3597.2,3597.0,2.78007]
[1732921827185,0.25950614,3597.4,3597.0,3.450686]
[1732921827405,0.03063881,3597.1,3597.0,3.450686]
[1732921827848,0.25962511,3597.7,3597.3,2.77986]
[1732921828188,0.29045651,3597.6,3597.3,2.77986]
[1732921828396,0.25962511,3597.5,3597.3,2.77986]
[1732921828551,0.25962511,3597.4,3597.3,2.77986]
[1732921828752,0.29045999,3597.4,3597.3,2.77986]
[1732921828954,0.03083488,3597.4,3597.3,3.4029066]
[1732921829178,2.779,3598.5,3597.3,3.4029066]
[1732921829179,0.25962511,3597.6,3597.3,7.1919066]
[1732921829348,0.25962511,3598.3,3597.8,2.77942]
[1732921829668,0.25962511,3598.2,3597.8,2.77942]
[1732921829850,0.25962511,3598.1,3597.9,2.77938]
[1732921830054,0.25962511,3598.0,3597.9,4.12426]
[1732921830475,0.25962511,3598.6,3597.9,1.34488]
[1732921830688,0.25962511,3598.5,3598.3,2.77904]
[1732921831016,0.25962511,3598.4,3598.3,2.77904]
[1732921832392,0.25962511,3598.4,3598.1,2.77918]
[1732921832564,0.25962511,3598.3,3597.9,2.77933]
[1732921832776,0.25962511,3598.2,3597.8,2.77947]
[1732921833085,0.25962511,3598.1,3598.0,2.77931]
[1732921833456,0.31968301,3598.1,3598.0,2.77931]
[1732921833696,0.0600579,3598.1,3598.0,2.77931]
[1732921834053,0.25962511,3598.4,3597.9,0.356847]
[1732921834253,0.06002684,3598.1,3598.0,3.0929497]
[1732921834505,0.25962511,3598.3,3598.0,3.0929497]
[1732921834999,0.0599021,3598.2,3598.0,3.0929497]
[1732921835294,0.25962511,3598.5,3598.0,3.0929497]
[1732921835491,0.05993975,3598.1,3598.0,0.3136297]
[1732921835798,0.25962511,3598.5,3598.1,2.77919]
[1732921836004,0.25962511,3598.7,3598.3,2.77908]
[1732921836176,0.25962511,3598.6,3598.3,2.77908]
[1732921836502,0.25962511,3598.9,3598.3,2.77908]
[1732921836657,0.0599945,3598.5,3598.3,2.77908]
[1732921836857,0.25962511,3598.7,3598.3,2.77908]
[1732921837186,0.25962511,3598.6,3598.4,0.69702247]
[1732921837376,2.77872,3598.8,3598.2,0.789]
[1732921837377,0.25962511,3598.7,3598.3,2.77907]
[1732921837999,0.25962511,3598.8,3598.3,2.77907]
[1732921838197,0.25962511,3598.7,3598.3,2.77907]
[1732921838353,2.77893,3598.5,3597.9,2.77934]
[1732921838559,0.25962511,3598.4,3597.9,2.77934]
[1732921839150,2.77952,3597.8,3597.4,0.789]
[1732921839356,0.3463,3598.3,3597.0,0.789]
[1732921839556,0.25930122,3598.2,3597.1,0.61070651]
[1732921839751,2.77925,3598.1,3597.2,2.77987]
[1732921840083,2.7794,3597.9,3597.3,2.77979]
[1732921840288,2.77952,3597.8,3597.2,2.77987]
[1732921840620,2.83947,3597.8,3597.2,2.77987]
[1732921840760,0.05995,3597.8,3597.2,2.77987]
[1732921840956,0.31924656,3597.8,3597.2,3.19782765]
[1732921841164,2.77963,3597.6,3597.1,2.78]
[1732921841596,2.77963,3597.6,3597.0,0.789]
[1732921841597,0.05983945,3597.5,3597.0,0.789]
[1732921842082,0.31917795,3597.5,3597.0,0.789]
[1732921842288,0.31917795,3597.5,3597.1,2.77999]
[1732921842802,0.31917795,3597.5,3597.0,0.789]
[1732921843805,3.09890795,3597.5,3597.0,0.789]
[1732921844112,2.83956945,3597.5,3597.0,3.56908]
[1732921844455,0.25945747,3597.4,3597.0,3.56908]
[1732921844656,0.31925243,3597.4,3597.0,3.56908]
[1732921844853,0.31925243,3597.4,3597.0,0.789]
[1732921845089,2.77993,3597.3,3596.6,3.7763]
[1732921845298,2.78041,3596.6,3596.0,3.55716]
[1732921845453,2.78031,3596.8,3596.1,2.78073]
[1732921845660,0.25954051,3596.7,3596.1,2.78073]
[1732921845890,3.09940336,3596.7,3596.1,3.414524]
[1732921846068,2.83986285,3596.7,3596.1,3.414524]
[1732921846899,0.05952285,3596.7,3596.2,2.7807]
[1732921847260,0.31908244,3596.7,3596.2,2.7807]
[1732921848202,0.31908244,3596.7,3596.3,2.78058]
[1732921848357,0.31908244,3596.7,3596.3,3.4777314]
[1732921848702,0.05952285,3596.7,3596.3,3.4777314]
[1732921848993,0.25955959,3596.8,3596.3,3.4777314]
[1732921849295,0.05906086,3596.6,3596.4,2.78051]
[1732921849498,0.05908219,3596.7,3596.3,3.4777314]
[1732921849674,0.05893553,3596.5,3596.4,3.12831314]
[1732921849856,0.25955959,3596.9,3596.4,2.78054]
[1732921850064,0.05893553,3596.5,3596.2,2.78065]
[1732921850263,0.25955959,3596.8,3596.3,2.78058]
[1732921850501,0.0589142,3596.4,3596.3,2.78058]
[1732921850702,0.25955959,3596.8,3596.4,2.78053]
[1732921850997,0.05903153,3596.7,3596.4,2.78053]
[1732921851358,0.05897868,3596.6,3596.3,2.78061]
[1732921851559,0.25955959,3596.9,3596.4,2.78054]
[1732921851860,0.31859985,3596.8,3596.4,2.78054]
[1732921854227,2.78032,3596.7,3596.3,0.63376]
[1732921854408,0.05860058,3596.7,3596.3,0.63376]
[1732921854703,2.78025,3596.8,3596.3,0.63376]
[1732921854867,0.05858713,3596.6,3596.3,0.63376]
[1732921855212,0.05855747,3596.5,3596.3,0.63376]
[1732921855360,0.25942454,3596.7,3596.3,0.63376]
[1732921855566,0.05858713,3596.6,3596.4,2.78054]
[1732921855987,0.25938914,3596.8,3596.4,2.78054]
[1732921856169,0.05856064,3596.5,3596.4,2.78054]
[1732921856388,0.25938914,3596.8,3596.4,2.78054]
[1732921856574,0.05856064,3596.5,3596.4,2.78054]
[1732921856775,3.03947914,3597.0,3596.4,3.33666]
[1732921857006,0.31803508,3596.9,3596.4,2.78054]
[1732921857165,0.31801198,3596.9,3596.4,2.78054]
[1732921857561,0.31801198,3596.9,3596.5,0.7763]
[1732921857762,2.78026,3596.8,3596.5,0.7763]
[1732921858018,0.05860803,3596.7,3596.3,2.78061]
[1732921858218,2.78026,3596.8,3596.3,3.414384]
[1732921858390,0.0585867,3596.6,3596.3,3.414384]
[1732921858599,2.78026,3596.8,3596.3,3.414384]
[1732921858806,0.05855728,3596.5,3596.3,3.414384]
[1732921859120,0.25932091,3596.8,3596.3,3.414384]
[1732921859323,0.05855171,3596.4,3596.3,0.633774]
[1732921859619,0.05855171,3596.4,3595.9,0.7763]
[1732921859824,0.05855171,3596.4,3596.0,3.0]
[1732921860487,2.7804,3596.6,3596.0,3.0]
[1732921860687,0.05854819,3596.3,3596.0,3.0]
[1732921860897,2.78048,3596.5,3596.0,3.0]
[1732921861101,0.05858053,3596.2,3595.9,3.55719]
[1732921861302,2.78076,3596.2,3595.8,3.0]
[1732921861511,0.0585592,3596.1,3595.7,2.78109]
[1732921861730,0.0585592,3596.1,3595.8,3.0]
[1732921862223,0.05821621,3596.0,3595.8,3.0]
[1732921862430,2.78071,3596.2,3595.8,3.0]
[1732921862602,0.05818588,3595.9,3595.8,3.0]
[1732921862803,2.78071,3596.2,3595.8,3.0]
[1732921863130,0.05816086,3595.9,3595.6,3.54567]
[1732921863433,0.05813953,3595.8,3595.7,2.78106]
[1732921863636,0.25937825,3596.2,3595.7,2.78106]
[1732921863835,0.05611149,3595.8,3595.7,2.78106]
[1732921864134,3.04009825,3596.2,3595.6,3.54567]
[1732921864287,0.05611149,3595.8,3595.6,3.54567]
[1732921864491,2.78072,3596.2,3595.6,3.54567]
[1732921864705,0.05608206,3595.7,3595.6,3.54567]
[1732921864900,2.78072,3596.2,3595.7,2.78107]
[1732921865106,2.78072,3596.2,3595.6,1.06358105]
[1732921865325,0.05615633,3596.1,3595.6,3.84471105]
[1732921865546,2.78092,3596.0,3595.6,1.06358105]
[1732921865767,2.78092,3596.0,3595.2,5.78147]
[1732921865768,2.78111,3595.7,3595.2,5.78147]
[1732921866029,0.05604807,3595.6,3595.2,3.0]
[1732921866731,0.05604807,3595.6,3594.8,0.7645]
[1732921866961,2.78139,3595.4,3594.8,3.54628]
[1732921867313,0.05403608,3595.3,3594.8,4.179107]
[1732921868254,0.05403608,3595.3,3594.8,1.397327]
[1732921868449,3.0408243,3595.6,3595.0,2.78158]
[1732921868628,0.0538782,3595.2,3595.1,0.02781283]
[1732921868831,0.2596343,3595.5,3595.0,2.80939287]
[1732921869031,0.0538528,3595.2,3595.0,2.80939287]
[1732921869297,0.2596343,3595.5,3595.0,2.80939287]
[1732921869418,0.05383146,3595.1,3595.0,2.78158]
[1732921869621,0.25960626,3595.7,3595.1,2.78148]
[1732921869815,0.25960626,3595.7,3595.2,0.02781103]
[1732921870056,2.78079,3596.1,3595.3,2.78138]
[1732921870355,2.78095,3595.9,3595.4,2.78132]
[1732921870934,0.60592293,3595.8,3595.3,3.0]
[1732921871134,3.04078293,3595.7,3595.1,5.7815]
[1732921871339,3.12732,3595.8,3595.3,2.7814]
[1732921871662,0.25966206,3595.7,3595.3,2.7814]
[1732921872445,0.25968602,3595.7,3595.4,2.80911108]
[1732921872626,0.25968602,3595.8,3595.4,2.80911108]
[1732921872826,2.78088,3596.0,3595.4,2.80911108]
[1732921872827,0.05404613,3595.6,3595.4,2.80911108]
[1732921873051,0.25968602,3595.8,3595.4,3.36817019]
[1732921873257,0.05401529,3595.5,3595.4,2.80911108]
[1732921873454,0.25968602,3595.7,3595.4,0.02781108]
[1732921873759,0.25968602,3595.8,3595.3,0.02781025]
[1732921873984,0.31374399,3595.7,3595.3,0.02781025]
[1732921874168,0.05405797,3595.7,3595.6,5.78117]
[1732921874370,3.21454863,3597.9,3595.6,4.98157138]
[1732921874371,0.3463,3596.9,3595.6,4.98157138]
[1732921874602,2.78072,3596.2,3595.6,1.95376654]
[1732921874896,2.78072,3596.2,3595.0,2.53792514]
[1732921874897,2.78093,3596.0,3595.4,2.78129]
[1732921875192,3.0895812,3595.9,3595.4,2.78129]
[1732921875413,0.25977302,3595.8,3595.4,2.78129]
[1732921875590,0.25981061,3595.7,3595.4,2.78129]
[1732921875891,0.30861779,3595.7,3595.4,2.78129]
[1732921876099,0.04880718,3595.7,3595.4,3.414014]
[1732921876256,0.30861779,3595.7,3595.4,3.414014]
[1732921876463,0.04880718,3595.7,3595.4,3.414014]
[1732921876758,0.04866937,3595.6,3595.4,3.414014]
[1732921876981,0.25981061,3595.8,3595.4,3.414014]
[1732921877154,0.04872273,3595.7,3595.4,3.414014]
[1732921877358,0.25981061,3595.8,3595.4,3.414014]
[1732921877589,0.04867903,3595.7,3595.4,3.414014]
[1732921877788,0.25981061,3595.8,3595.4,3.414014]
[1732921877995,0.04865769,3595.6,3595.5,0.51144764]
[1732921878153,0.25981061,3595.8,3595.4,2.78133]
[1732921878355,3.12702,3596.2,3595.4,2.78133]
[1732921878356,0.3083166,3595.7,3595.5,2.78124]
[1732921878599,3.04060061,3596.1,3595.5,2.78124]
[1732921878754,0.04850244,3595.6,3595.5,2.78124]
[1732921879110,0.25981061,3595.9,3595.4,2.78133]
[1732921879399,0.25981061,3595.8,3595.4,2.78133]
[1732921879700,0.25981061,3595.7,3595.5,2.78124]
[1732921879860,0.25981061,3595.6,3595.5,2.78124]
[1732921880061,0.0485651,3595.6,3595.5,2.78124]
[1732921880505,0.25986978,3596.0,3595.9,6.57404]
[1732921880714,0.25982963,3596.5,3596.4,2.78055]
[1732921881071,0.25982963,3596.8,3596.6,2.7804]
[1732921881270,0.25982963,3596.7,3596.6,2.7804]
[1732921882419,0.25982963,3596.7,3596.4,2.78055]
[1732921882619,0.41576979,3597.1,3596.6,2.7804]
[1732921882913,0.25978193,3597.0,3596.6,2.7804]
[1732921883085,0.41576979,3597.1,3596.6,2.7804]
[1732921883086,0.25978193,3596.9,3596.6,2.7804]
[1732921883285,0.25978193,3596.8,3596.6,2.7804]
[1732921883490,0.25978193,3596.8,3596.4,2.78055]
[1732921883491,0.25978193,3596.7,3596.4,2.78055]
[1732921883699,0.25978193,3596.6,3596.4,2.78055]
[1732921883905,0.2597788,3596.5,3596.4,2.78055]
[1732921884105,0.04550164,3596.5,3596.4,2.78055]
[1732921884513,0.30528044,3596.5,3595.9,0.7931]
[1732921884825,0.2597788,3596.4,3596.1,2.78072]
[1732921884977,0.2597788,3596.3,3596.2,2.78071]
[1732921885177,0.04569075,3596.3,3596.2,2.78071]
[1732921885409,0.25979761,3596.5,3596.2,2.78071]
[1732921885630,0.04574639,3596.3,3596.2,2.80851497]
[1732921885830,0.25979761,3596.3,3596.2,2.78071]
[1732921886035,0.30555233,3596.3,3595.6,2.78114]
[1732921886237,2.78079,3596.1,3595.4,2.78128]
[1732921886394,0.25979761,3596.0,3595.4,2.78128]
[1732921886594,0.25979761,3596.0,3595.4,0.637864]
[1732921886595,0.25979761,3595.9,3595.4,0.637864]
[1732921886798,0.25979761,3595.8,3595.6,2.78112]
[1732921886996,0.04566597,3595.8,3595.6,2.78112]
[1732921887319,2.78079,3596.1,3595.6,2.78112]
[1732921887635,0.25992169,3596.0,3595.4,2.78131]
[1732921887841,0.25992169,3595.9,3595.4,2.78131]
[1732921888135,0.25992169,3595.8,3595.4,3.141031]
[1732921888429,0.30550278,3595.7,3595.4,3.141031]
[1732921888604,0.04558109,3595.7,3595.6,2.78117]
[1732921888810,0.25996092,3595.7,3595.6,2.78117]
[1732921889119,0.30552726,3595.7,3595.6,2.78117]
[1732921890932,0.04557276,3595.7,3595.6,2.78117]
[1732921891135,0.04557276,3595.7,3595.6,3.4549801]
[1732921891435,0.3463,3596.2,3595.8,2.781]
[1732921891622,0.04540847,3595.7,3595.6,2.78111]
[1732921891857,3.04082703,3596.1,3595.6,2.78111]
[1732921892142,0.04535274,3595.7,3595.6,2.78111]
[1732921892439,0.04535247,3595.7,3595.6,2.78111]
[1732921892638,0.26001703,3595.8,3595.6,2.78111]
[1732921892807,0.04535247,3595.7,3595.6,2.78111]
[1732921893141,0.26003044,3596.1,3595.6,2.78111]
[1732921893342,0.04535247,3595.7,3595.6,2.78111]
[1732921893502,0.26003044,3595.9,3595.6,2.78111]
[1732921893705,0.04535725,3595.7,3595.6,2.78111]
[1732921894037,0.26002527,3596.1,3595.7,2.78107]
[1732921894235,0.26002527,3596.0,3595.9,2.78094]
[1732921894811,0.30393156,3596.0,3595.9,2.78094]
[1732921896561,0.30393156,3596.0,3595.9,4.114343]
[1732921896764,2.77993,3597.3,3595.9,4.114343]
[1732921896765,0.3463,3597.4,3596.6,2.78039]
[1732921896924,0.1,3598.8,3597.6,2.77958]
[1732921896925,0.3463,3598.3,3597.6,2.77958]
[1732921897121,2.77924,3598.1,3597.3,2.77978]
[1732921897322,0.312554,3598.0,3597.3,2.77978]
[1732921897660,0.312554,3598.0,3597.3,2.80757516]
[1732921897863,3.12541,3598.3,3597.5,2.77965]
[1732921898089,2.77924,3598.1,3597.5,2.77965]
[1732921898424,0.0308657,3598.0,3597.5,2.77965]
[1732921899469,0.3463,3598.3,3597.8,2.77946]
[1732921899628,0.03089038,3597.9,3597.8,2.77946]
[1732921899832,0.3463,3598.3,3597.8,2.77946]
[1732921900025,0.03089038,3597.9,3597.8,2.77946]
[1732921900372,3.715812,3598.3,3597.8,2.77946]
[1732921900522,0.03089038,3597.9,3597.8,2.77946]
[1732921900724,3.715812,3598.3,3597.6,2.77962]
[1732921900938,0.03089038,3597.9,3597.7,2.77952]
[1732921901161,3.715812,3598.3,3597.7,2.77952]
[1732921901366,0.936722,3598.3,3597.8,2.77947]
[1732921901665,3.12511,3598.7,3597.8,0.02779373]
[1732921901864,0.3463,3598.7,3598.3,2.77908]
[1732921902084,0.03128748,3598.6,3598.4,2.77894]
[1732921902864,0.3463,3598.7,3598.1,2.77922]
[1732921903085,0.03162965,3598.5,3598.3,2.77908]
[1732921903287,0.3463,3598.7,3598.3,2.77908]
[1732921903493,0.03161668,3598.4,3598.3,2.77908]
[1732921903788,0.3463,3598.7,3598.3,2.77908]
[1732921903987,0.03168154,3598.4,3598.3,2.77908]
[1732921904192,0.3463,3598.7,3598.3,2.77908]
[1732921904828,0.03141732,3598.6,3598.3,2.77908]
[1732921909579,0.03141732,3598.6,3598.4,2.77898]
[1732921909896,3.38328502,3599.0,3598.4,2.77898]
[1732921910092,0.03186329,3598.5,3598.4,2.80676791]
[1732921910396,0.3463,3599.0,3598.6,2.77885]
[1732921910830,0.25842177,3599.1,3598.8,2.7787]
[1732921911036,0.60472177,3599.4,3598.9,2.77861]
[1732921911426,3.38302177,3599.4,3598.7,2.80656468]
[1732921911626,0.25842177,3599.3,3598.8,2.7787]
[1732921912211,0.25831149,3599.3,3598.8,2.7787]
[1732921912450,3.74071918,3599.4,3598.8,2.7787]
[1732921912957,2.77836,3599.3,3598.6,3.55543]
[1732921913120,2.7784,3599.2,3598.6,2.77883]
[1732921913315,0.57202332,3599.1,3598.7,2.77877]
[1732921913520,0.6043201,3599.1,3598.7,2.77877]
[1732921914216,0.03229678,3599.1,3598.7,2.77877]
[1732921914418,3.1246,3599.4,3598.7,2.77877]
[1732921914621,0.03230163,3599.0,3598.7,2.77877]
[1732921914821,2.77833,3599.3,3598.7,2.77877]
[1732921915024,0.03235959,3598.9,3598.7,2.77877]
[1732921915222,2.77833,3599.3,3598.7,2.77877]
[1732921915424,3.368623,3599.3,3598.7,2.77877]
[1732921915723,0.03242505,3599.2,3598.7,2.77877]
[1732921916663,0.3463,3599.1,3597.9,3.55595]
[1732921916830,2.7787,3598.8,3598.3,2.77907]
[1732921917044,3.369054,3598.8,3598.1,5.55836]
[1732921917350,2.81090998,3598.7,3598.0,2.77926]
[1732921917557,2.81090998,3598.7,3598.1,2.77924]
[1732921917729,2.77895,3598.5,3597.9,3.55597]
[1732921918063,0.03204942,3598.4,3597.9,2.77937]
[1732921918970,2.81105942,3598.4,3597.9,2.77937]
[1732921919340,2.81105942,3598.4,3597.7,2.77953]
[1732921919541,2.81105942,3598.4,3597.8,2.77946]
[1732921920066,2.81105942,3598.4,3597.7,2.77953]
[1732921920268,2.81105942,3598.4,3597.9,2.77938]
[1732921920631,2.81105942,3598.4,3597.7,2.77953]
[1732921920827,2.77921,3598.2,3597.3,3.55643]
[1732921921063,2.53792514,3599.1,3597.3,3.55643]
[1732921921064,0.3463,3598.1,3597.3,3.55643]
[1732921921230,2.77945,3597.9,3597.3,2.77983]
[1732921921426,2.81141238,3598.0,3597.4,2.77977]
[1732921921763,0.03161576,3597.8,3597.4,2.77977]
[1732921922070,0.3463,3598.1,3597.1,2.77998]
[1732921922071,0.03159445,3597.7,3597.3,2.77979]
[1732921922368,2.7794,3597.9,3597.3,2.77979]
[1732921922570,0.03157313,3597.6,3597.3,2.77979]
[1732921922871,0.03155182,3597.5,3597.3,2.77979]
[1732921923069,2.7794,3597.9,3597.3,2.77979]
[1732921923244,0.0315305,3597.4,3597.3,2.77979]
[1732921923434,2.7794,3597.9,3597.3,2.77979]
[1732921923635,0.0315305,3597.4,3597.3,2.77979]
[1732921924052,2.7794,3597.9,3597.3,2.77979]
[1732921924267,0.03146192,3597.4,3597.3,2.77979]
[1732921924463,2.77917,3598.2,3597.5,2.77963]
[1732921924634,0.1,3599.7,3597.3,0.55633938]
[1732921924635,2.77888,3598.6,3598.0,2.7793]
[1732921925037,0.25921227,3598.5,3597.9,2.77937]
[1732921925237,0.25921227,3598.4,3597.9,2.77937]
[1732921925439,0.25921227,3598.3,3597.9,2.77937]
[1732921925702,0.25921227,3598.4,3598.0,2.77931]
[1732921925858,0.25921227,3598.3,3597.7,3.58503]
[1732921926064,3.12508,3598.7,3598.1,2.77919]
[1732921926334,0.25945451,3598.6,3598.5,2.77893]
[1732921926574,0.25945451,3598.6,3598.5,2.8067153]
[1732921926738,0.25945451,3598.6,3598.5,2.77893]
[1732921927663,0.03063053,3598.6,3598.5,2.77893]
[1732921927850,2.77816,3599.5,3598.9,2.77858]
[1732921928052,0.25977408,3599.4,3598.9,2.77858]
[1732921928352,0.25977408,3599.3,3599.0,2.77849]
[1732921928548,0.25977408,3599.2,3599.0,2.77849]
[1732921928861,0.25977408,3599.1,3599.0,2.77849]
[1732921929064,0.25977408,3599.1,3598.8,2.77867]
[1732921929272,0.25977408,3599.0,3598.9,2.77862]
[1732921930299,0.25977408,3599.0,3598.7,2.77872]
[1732921930452,0.25977408,3598.9,3598.8,2.77864]
[1732921930655,0.25977408,3598.9,3598.8,3.4785612]
[1732921930881,0.25977408,3598.9,3598.7,2.77872]
[1732921931059,2.77832,3599.3,3598.7,2.77872]
[1732921931271,0.03074541,3598.8,3598.6,0.8055]
[1732921931476,0.3463,3599.6,3598.6,0.8055]
[1732921931669,0.03080498,3598.7,3598.6,3.58435]
[1732921931859,0.3463,3599.6,3599.1,2.77845]
[1732921932566,0.25968998,3599.5,3599.1,2.77845]
[1732921932755,0.25968998,3599.5,3598.9,2.77862]
[1732921932946,0.25968998,3599.4,3599.1,2.77846]
[1732921933154,0.25968998,3599.3,3599.1,2.77846]
[1732921933346,0.25968998,3599.2,3599.1,2.77846]
[1732921935716,0.25968998,3599.2,3599.1,4.0713568]
[1732921935873,0.25968998,3599.8,3599.7,2.778]
[1732921936071,0.25968998,3599.8,3599.5,2.77815]
[1732921936297,0.3463,3600.3,3599.2,3.58385]
[1732921936490,0.25941642,3600.2,3598.8,0.8055]
[1732921936694,2.77803,3599.7,3599.1,2.77844]
[1732921936890,2.77788,3599.9,3598.8,0.8055]
[1732921936891,0.25941642,3599.6,3598.8,0.8055]
[1732921937203,0.25941642,3599.5,3599.3,2.77831]
[1732921937401,3.124,3600.1,3599.3,2.77831]
[1732921937402,0.25941642,3599.4,3599.3,3.333989]
[1732921937597,0.25941642,3600.0,3599.4,2.77822]
[1732921937795,3.124,3600.1,3599.4,2.77822]
[1732921937796,0.25941642,3599.9,3599.4,2.77822]
[1732921937979,0.25941642,3599.8,3599.4,2.77822]
[1732921938167,0.25941642,3599.8,3599.5,2.77814]
[1732921938360,0.25941642,3599.7,3599.6,2.77808]
[1732921938668,0.25941642,3600.0,3599.5,3.3893529]
[1732921938885,0.25941642,3599.9,3599.7,2.77793]
[1732921939065,0.25941642,3599.8,3599.7,2.77793]
[1732921939264,0.25941642,3600.3,3599.9,2.77783]
[1732921939493,0.25941642,3600.2,3599.6,2.77808]
[1732921939688,0.25941642,3600.1,3599.9,2.77784]
[1732921939889,0.25941642,3600.0,3599.9,2.77784]
[1732921940092,0.28931741,3600.0,3599.9,2.77784]
[1732921940292,0.02990099,3600.0,3599.9,2.77784]
[1732921940494,0.25941642,3600.2,3599.9,2.77784]
[1732921940721,0.02997352,3600.0,3599.7,2.77795]
[1732921940887,0.02997352,3600.0,3599.6,2.77808]
[1732921940888,0.25941642,3600.3,3599.8,2.77792]
[1732921941086,0.02995223,3599.9,3599.8,2.77792]
[1732921941265,0.25941642,3600.1,3599.8,2.77792]
[1732921941467,0.02995223,3599.9,3599.8,2.77792]
[1732921941660,0.02995223,3599.9,3599.6,2.77808]
[1732921941661,0.25941642,3600.2,3599.6,2.77808]
[1732921941903,2.778,3599.7,3598.8,3.53778]
[1732921942068,0.3463,3599.8,3598.5,2.53792514]
[1732921942069,2.77832,3599.3,3598.7,2.77876]
[1732921942271,2.77832,3599.3,3598.6,2.77878]
[1732921942565,0.02970129,3599.2,3598.5,3.84123601]
[1732921942765,0.02970129,3599.2,3598.5,3.538]
[1732921942966,0.02970129,3599.2,3597.5,2.77965]
[1732921942967,2.77879,3598.7,3598.0,0.7591]
[1732921943178,2.77863,3598.9,3598.1,2.77921]
[1732921943397,0.02974936,3598.6,3598.1,2.77921]
[1732921943596,0.2591879,3598.8,3598.1,2.77924]
[1732921943772,0.02960941,3598.5,3598.4,2.77901]
[1732921943974,0.6054879,3599.1,3598.6,2.77885]
[1732921944879,0.2591879,3599.1,3598.8,2.77868]
[1732921945084,2.77825,3599.4,3598.8,2.77868]
[1732921945282,0.2591879,3599.3,3598.9,2.77861]
[1732921945474,0.2591879,3599.4,3598.9,2.77861]
[1732921945674,0.2591879,3599.3,3598.9,2.77861]
[1732921945902,0.2591879,3599.4,3598.9,2.77861]
[1732921946207,0.2591879,3599.3,3598.9,2.77861]
[1732921947111,0.02972657,3599.2,3598.9,2.77861]
[1732921947306,0.2591879,3599.3,3598.9,2.77861]
[1732921947508,0.02963585,3599.1,3598.9,2.77861]
[1732921947711,0.2591879,3599.3,3598.7,3.53781]
[1732921947873,0.02961455,3599.0,3598.8,2.77865]
[1732921948181,0.25916717,3599.3,3598.8,2.77865]
[1732921948521,0.25916717,3599.3,3598.9,2.77858]
[1732921948811,0.02965715,3599.2,3598.9,2.77858]
[1732921949173,0.25916717,3599.4,3598.9,2.77858]
[1732921949369,0.02977781,3599.1,3598.8,2.77868]
[1732921949576,0.25916717,3599.2,3598.8,2.77868]
[1732921949885,0.25916717,3599.4,3598.8,2.77868]
[1732921950087,0.02976948,3599.1,3598.8,2.77868]
[1732921950277,0.25916717,3599.4,3598.8,2.77868]
[1732921950479,0.02974819,3599.0,3598.8,2.77868]
[1732921950791,0.25916717,3599.4,3598.8,2.77868]
[1732921951119,0.25916717,3599.3,3598.8,2.77868]
[1732921951424,0.28884562,3599.3,3598.8,2.77868]
[1732921951717,0.25928853,3599.2,3598.8,2.77868]
[1732921951890,2.77881,3598.7,3597.8,0.7677]
[1732921952088,2.77881,3598.7,3596.7,5.37]
[1732921952089,3.12523,3598.5,3597.7,2.7795]
[1732921952289,3.12523,3598.5,3597.5,3.5474]
[1732921952290,2.77912,3598.3,3597.5,3.54738]
[1732921952488,2.77916,3598.2,3597.7,2.77949]
[1732921952683,0.25951978,3598.1,3597.8,2.77946]
[1732921952916,0.2595134,3598.4,3597.9,2.80711123]
[1732921953212,0.2595134,3598.3,3597.9,0.02779123]
[1732921953515,0.02943823,3598.3,3597.6,2.77957]
[1732921953714,0.2595134,3598.2,3597.6,0.632694]
[1732921953919,0.28905398,3598.2,3597.7,2.77952]
[1732921954129,0.02954058,3598.2,3597.7,2.77952]
[1732921954278,0.2595134,3598.1,3597.7,2.77952]
[1732921954480,0.28900397,3598.1,3597.7,2.77952]
[1732921954692,0.02949057,3598.1,3597.7,2.77952]
[1732921955115,0.28900397,3598.1,3597.7,2.77952]
[1732921955293,0.02949057,3598.1,3597.7,2.77952]
[1732921955502,0.28900397,3598.1,3597.7,2.77952]
[1732921955824,0.02949057,3598.1,3597.6,0.632694]
[1732921956031,3.06829397,3598.1,3597.6,0.632694]
[1732921956213,0.02949057,3598.1,3597.6,3.412314]
[1732921956522,0.25959439,3598.2,3597.6,3.412314]
[1732921956730,2.77943,3597.9,3597.5,0.7677]
[1732921957226,0.02917574,3597.8,3597.5,0.7677]
[1732921958487,2.77931,3598.1,3597.5,0.7677]
[1732921958717,0.02924044,3597.7,3597.5,0.7677]
[1732921958985,0.25945794,3598.0,3597.5,0.7677]
[1732921959187,0.02921913,3597.6,3597.5,0.7677]
[1732921959521,0.02924346,3597.6,3597.5,0.7677]
[1732921959730,2.77932,3598.0,3597.5,0.7677]
[1732921959887,0.02913311,3597.6,3597.5,0.7677]
[1732921960223,3.12582,3597.8,3597.2,0.7677]
[1732921960428,2.77972,3597.5,3597.0,2.78009]
[1732921960628,0.0291324,3597.7,3597.0,2.78009]
[1732921960928,2.77958,3597.7,3597.1,2.78001]
[1732921961082,0.02909672,3597.6,3597.1,2.78001]
[1732921961288,2.80872672,3597.6,3597.1,3.134781]
[1732921962220,0.02909672,3597.6,3597.1,3.134781]
[1732921962523,3.38505765,3597.8,3597.2,0.02779498]
[1732921962721,0.02919292,3597.5,3597.1,0.354771]
[1732921963025,2.77968,3597.6,3597.0,2.78008]